[Event "European Rapid Championship 2021"]
[Site "Katowice"]
[Date "2021.12.18"]
[Round "5.8"]
[White "Sumets, Andrey"]
[Black "Teclaf, Pawel"]
[Result "1/2-1/2"]
[ECO "B43"]
[WhiteElo "2508"]
[BlackElo "2345"]
[Annotator "ChessBase"]
[PlyCount "26"]
[EventDate "2021.12.18"]
[EventType "swiss"]
[EventCountry "POL"]
[SourceTitle "playchess.com"]
[Source "ChessBase"]
[SourceQuality "1"]
[TimeControl "900+10"]

1. d4 {[%emt 0:00:01]} e6 {[%emt 0:00:01]} 2. Nf3 {[%emt 0:00:14]} c5 {[%emt 0:
00:02]} 3. e4 {[%emt 0:00:01]} cxd4 {[%emt 0:00:01]} 4. Nxd4 {[%emt 0:00:01]}
a6 {[%emt 0:00:01]} 5. Nc3 {[%emt 0:00:23]} b5 {[%emt 0:00:01]} 6. Bd3 {
[%emt 0:00:02]} Bb7 {[%emt 0:00:01]} 7. O-O {[%emt 0:00:06]} Nc6 {[%emt 0:00:
01]} 8. Nxc6 {[%emt 0:00:23]} Bxc6 {[%emt 0:00:02]} 9. Re1 {[%emt 0:00:06]} Ne7
{[%emt 0:00:01]} 10. Bf4 {[%emt 0:01:29]} Ng6 {[%emt 0:00:24]} 11. Bg3 {
[%emt 0:00:02]} Bb4 {[%emt 0:03:02]} 12. a3 {[%emt 0:01:56]} Ba5 {[%emt 0:02:
07]} 13. Qh5 {[%emt 0:04:48]} f6 {[%emt 0:02:07]} 1/2-1/2

[Event "European Rapid Championship 2021"]
[Site "Katowice"]
[Date "2021.12.18"]
[Round "5.8"]
[White "Jonsson, Gauti Pall"]
[Black "Jagodzinski, Piotr"]
[Result "1/2-1/2"]
[ECO "A06"]
[WhiteElo "2014"]
[BlackElo "2145"]
[Annotator "NA"]
[PlyCount "143"]
[EventDate "2021.12.18"]
[EventType "swiss"]
[EventCountry "POL"]
[SourceTitle "playchess.com"]
[Source "ChessBase"]
[SourceQuality "1"]
[TimeControl "900+10"]

1. Nf3 {[%emt 0:00:03]} d5 {[%emt 0:00:10]} 2. g3 {[%emt 0:00:03]} Nf6 {
[%emt 0:00:02]} 3. Bg2 {[%emt 0:00:02]} c6 {[%emt 0:00:13]} 4. O-O {[%emt 0:00:
05]} Bf5 {[%emt 0:00:08]} 5. d3 {[%emt 0:00:06]} e6 {[%emt 0:00:57]} 6. Nh4 {
[%emt 0:00:22]} Bg4 {[%emt 0:00:02]} 7. h3 {[%emt 0:00:02]} Bh5 {[%emt 0:00:01]
} 8. Qe1 {[%emt 0:00:04]} Be7 {[%emt 0:00:26]} 9. e4 {[%emt 0:00:11]} dxe4 {
[%emt 0:00:33]} 10. dxe4 {[%emt 0:00:03]} Na6 {[%emt 0:01:10]} 11. Be3 {
[%emt 0:00:39]} Nd7 {[%emt 0:01:24]} 12. Nf3 {[%emt 0:00:15]} Bf6 {[%emt 0:00:
40]} 13. Nd4 {[%emt 0:01:08]} Nb6 {[%emt 0:00:45]} 14. c3 {[%emt 0:01:12]} Nc4
{[%emt 0:00:10]} 15. b3 {[%emt 0:00:24]} Nxe3 {[%emt 0:00:08]} 16. Qxe3 {
[%emt 0:00:01]} Qb6 {[%emt 0:04:13]} 17. e5 {[%emt 0:00:24]} Be7 {[%emt 0:00:
04]} 18. Nd2 {[%emt 0:00:41]} Rd8 {[%emt 0:00:01]} 19. Nc4 {[%emt 0:00:19]} Qc5
{[%emt 0:01:08]} 20. g4 {[%emt 0:00:38]} Bg6 {[%emt 0:00:01]} 21. f4 {[%emt 0:
00:14]} Nc7 {[%emt 0:03:22]} 22. f5 {[%emt 0:00:05]} exf5 {[%emt 0:00:00]} 23.
gxf5 {[%emt 0:00:02]} Bh5 {[%emt 0:00:01]} 24. f6 {[%emt 0:00:23]} Bf8 {
[%emt 0:00:18]} 25. Nd6+ {[%emt 0:00:54]} Bxd6 {[%emt 0:01:28]} 26. exd6+ Ne6
27. Rf5 {[%emt 0:01:07]} Qxd6 {[%emt 0:00:27]} 28. fxg7 {[%emt 0:00:27]} Rg8 {
[%emt 0:00:03]} 29. Rxh5 {[%emt 0:00:11]} Kd7 {[%emt 0:00:51]} 30. Nxe6 {
[%emt 0:00:08]} fxe6 {[%emt 0:00:01]} 31. Qxa7 {[%emt 0:00:41]} Kc8 {[%emt 0:
00:18]} 32. Qa8+ {[%emt 0:01:17]} Kc7 {[%emt 0:00:02]} 33. Qa5+ {[%emt 0:00:04]
} Kc8 {[%emt 0:00:02]} 34. Qe5 {[%emt 0:00:15]} Qxe5 {[%emt 0:00:19]} 35. Rxe5
{[%emt 0:00:01]} Rxg7 {[%emt 0:00:01]} 36. Rf1 {[%emt 0:00:12]} Rd3 {[%emt 0:
00:39]} 37. Rxe6 {[%emt 0:00:14]} Rxh3 {[%emt 0:00:10]} 38. Rf8+ {[%emt 0:00:
21]} Kd7 {[%emt 0:00:01]} 39. Rf7+ {[%emt 0:00:05]} Rxf7 {[%emt 0:00:28]} 40.
Bxh3 {[%emt 0:00:02]} Kc7 {[%emt 0:00:01]} 41. Kg2 {[%emt 0:00:11]} Kb6 {
[%emt 0:00:09]} 42. Re3 {[%emt 0:00:10]} Kc5 {[%emt 0:00:06]} 43. Be6 {[%emt 0:
00:14]} Rf6 {[%emt 0:00:05]} 44. a4 {[%emt 0:00:09]} b5 {[%emt 0:00:17]} 45.
b4+ {[%emt 0:00:05]} Kd6 {[%emt 0:00:02]} 46. a5 {[%emt 0:00:59]} c5 {[%emt 0:
00:01]} 47. a6 {[%emt 0:00:12]} Rf8 {[%emt 0:01:02]} 48. bxc5+ {[%emt 0:02:25]}
Kxc5 {[%emt 0:00:01]} 49. Re5+ {[%emt 0:00:12]} Kd6 {[%emt 0:00:21]} 50. Rxb5 {
[%emt 0:03:56]} Kxe6 {[%emt 0:00:02]} 51. a7 {[%emt 0:00:01]} Ra8 {[%emt 0:00:
00]} 52. Rb7 {[%emt 0:00:01]} h6 {[%emt 0:00:09]} 53. Kg3 {[%emt 0:00:11]} Kd5
{[%emt 0:00:03]} 54. Kg4 {[%emt 0:00:19]} Kc6 {[%emt 0:00:00]} 55. Rh7 Kb6 56.
Rxh6+ {[%emt 0:00:46]} Kxa7 {[%emt 0:00:01]} 57. Kf4 {[%emt 0:00:12]} Re8 {
[%emt 0:00:02]} 58. Kf5 {[%emt 0:00:13]} Kb7 {[%emt 0:00:02]} 59. c4 {[%emt 0:
00:13]} Kc7 {[%emt 0:00:01]} 60. Rh4 {[%emt 0:00:13]} Kc6 {[%emt 0:00:01]} 61.
Re4 {[%emt 0:00:36]} Rxe4 {[%emt 0:00:14]} 62. Kxe4 {[%emt 0:00:02]} Kc5 {
[%emt 0:00:01]} 63. Kd3 {[%emt 0:00:01]} Kc6 {[%emt 0:00:01]} 64. Kd4 {[%emt 0:
00:01]} Kd6 {[%emt 0:00:00]} 65. c5+ Kc6 66. Kc4 {[%emt 0:00:03]} Kc7 {[%emt 0:
00:02]} 67. Kd5 {[%emt 0:00:01]} Kd7 {[%emt 0:00:00]} 68. c6+ {[%emt 0:00:01]}
Kc7 {[%emt 0:00:01]} 69. Kc5 {[%emt 0:00:01]} Kc8 {[%emt 0:00:00]} 70. Kd6 {
[%emt 0:00:01]} Kd8 {[%emt 0:00:00]} 71. c7+ {[%emt 0:00:01]} Kc8 {[%emt 0:00:
01]} 72. Kc6 1/2-1/2

[Event "European Rapid Championship 2021"]
[Site "Katowice"]
[Date "2021.12.18"]
[Round "5.9"]
[White "Skawinski, Arkadiusz"]
[Black "Kacprzak, Karol"]
[Result "1/2-1/2"]
[ECO "C84"]
[WhiteElo "2367"]
[BlackElo "2038"]
[Annotator "NA"]
[PlyCount "111"]
[EventDate "2021.12.18"]
[EventType "swiss"]
[EventCountry "POL"]
[SourceTitle "playchess.com"]
[Source "ChessBase"]
[SourceQuality "1"]
[TimeControl "900+10"]

1. e4 {[%emt 0:00:02]} e5 {[%emt 0:00:03]} 2. Nf3 {[%emt 0:00:01]} Nc6 {
[%emt 0:00:01]} 3. Bb5 {[%emt 0:00:02]} a6 {[%emt 0:00:01]} 4. Ba4 {[%emt 0:00:
00]} Nf6 {[%emt 0:00:02]} 5. O-O {[%emt 0:00:03]} Be7 {[%emt 0:00:02]} 6. d3 {
[%emt 0:00:03]} d6 {[%emt 0:00:25]} 7. c3 {[%emt 0:00:25]} O-O {[%emt 0:00:38]}
8. Re1 {[%emt 0:00:01]} b5 {[%emt 0:00:56]} 9. Bc2 {[%emt 0:00:02]} Re8 {
[%emt 0:00:01]} 10. d4 {[%emt 0:00:07]} exd4 {[%emt 0:00:25]} 11. cxd4 {
[%emt 0:00:02]} Bg4 {[%emt 0:00:04]} 12. Nc3 {[%emt 0:00:05]} h6 {[%emt 0:01:
11]} 13. Ne2 {[%emt 0:01:32]} Bf8 {[%emt 0:02:44]} 14. Ng3 {[%emt 0:00:02]} Nd7
{[%emt 0:02:16]} 15. Be3 {[%emt 0:01:12]} Na5 {[%emt 0:00:43]} 16. h3 {[%emt 0:
00:40]} Bxf3 {[%emt 0:00:02]} 17. Qxf3 {[%emt 0:00:01]} c5 {[%emt 0:00:01]} 18.
Rad1 {[%emt 0:00:10]} Nc4 {[%emt 0:00:22]} 19. Bc1 {[%emt 0:01:25]} cxd4 {
[%emt 0:00:04]} 20. Rxd4 {[%emt 0:00:03]} Qf6 {[%emt 0:01:09]} 21. Qxf6 {
[%emt 0:04:25]} Nxf6 {[%emt 0:00:02]} 22. b3 {[%emt 0:00:01]} Ne5 {[%emt 0:00:
10]} 23. Ba3 {[%emt 0:02:36]} Rac8 {[%emt 0:01:17]} 24. Bb1 {[%emt 0:00:17]} d5
{[%emt 0:01:06]} 25. Bxf8 {[%emt 0:00:21]} Kxf8 {[%emt 0:00:02]} 26. Rdd1 {
[%emt 0:00:03]} dxe4 {[%emt 0:00:05]} 27. Nxe4 {[%emt 0:00:15]} Nxe4 {[%emt 0:
01:32]} 28. Bxe4 {[%emt 0:00:02]} a5 {[%emt 0:00:06]} 29. Kf1 {[%emt 0:00:16]}
Rcd8 {[%emt 0:00:23]} 30. a3 {[%emt 0:01:34]} g5 {[%emt 0:02:15]} 31. Rxd8 {
[%emt 0:02:28]} Rxd8 {[%emt 0:00:01]} 32. Rc1 {[%emt 0:00:01]} Rd4 {[%emt 0:01:
48]} 33. f3 {[%emt 0:00:07]} a4 {[%emt 0:00:01]} 34. Rc5 {[%emt 0:00:34]} Nd3 {
[%emt 0:00:07]} 35. Rxb5 {[%emt 0:00:21]} axb3 {[%emt 0:00:01]} 36. Rxb3 {
[%emt 0:00:01]} Nc5 {[%emt 0:00:23]} 37. Re3 {[%emt 0:01:01]} Nxe4 {[%emt 0:00:
26]} 38. Rxe4 {[%emt 0:00:43]} Rd3 {[%emt 0:00:03]} 39. a4 {[%emt 0:00:17]} Ra3
{[%emt 0:00:01]} 40. h4 {[%emt 0:00:01]} Kg7 {[%emt 0:00:08]} 41. h5 {[%emt 0:
00:21]} Ra2 {[%emt 0:00:03]} 42. Kg1 {[%emt 0:00:01]} Kf6 {[%emt 0:00:26]} 43.
Rb4 {[%emt 0:00:04]} Kg7 {[%emt 0:00:09]} 44. Kh2 {[%emt 0:00:02]} f5 {[%emt 0:
00:14]} 45. Rb7+ {[%emt 0:00:06]} Kf6 {[%emt 0:00:21]} 46. Rb6+ {[%emt 0:00:11]
} Kg7 {[%emt 0:00:14]} 47. Rg6+ {[%emt 0:00:01]} Kh7 {[%emt 0:00:06]} 48. Ra6 {
[%emt 0:00:01]} Kg7 {[%emt 0:00:01]} 49. a5 {[%emt 0:00:16]} Ra4 {[%emt 0:00:
22]} 50. Kg1 {[%emt 0:00:07]} Ra2 {[%emt 0:00:01]} 51. Kh2 {[%emt 0:00:11]} Ra4
{[%emt 0:00:03]} 52. Ra7+ {[%emt 0:00:01]} Kf6 {[%emt 0:00:20]} 53. Rh7 {
[%emt 0:00:20]} g4 {[%emt 0:00:15]} 54. f4 {[%emt 0:00:48]} Rxf4 {[%emt 0:00:
15]} 55. a6 {[%emt 0:00:02]} Ra4 {[%emt 0:00:09]} 56. Rxh6+ {[%emt 0:00:25]}
1/2-1/2

[Event "European Rapid Championship 2021"]
[Site "Katowice"]
[Date "2021.12.18"]
[Round "5.9"]
[White "Rudecki, Bartosz"]
[Black "Janik, Igor"]
[Result "0-1"]
[ECO "B12"]
[WhiteElo "1820"]
[BlackElo "2462"]
[Annotator "ChessBase"]
[PlyCount "50"]
[EventDate "2021.12.18"]
[EventType "swiss"]
[EventCountry "POL"]
[SourceTitle "playchess.com"]
[Source "ChessBase"]
[SourceQuality "1"]
[TimeControl "900+10"]

1. e4 {[%emt 0:00:02]} c6 {[%emt 0:00:01]} 2. d4 {[%emt 0:00:02]} d5 {[%emt 0:
00:01]} 3. f3 {[%emt 0:00:02]} g6 {[%emt 0:00:01]} 4. Be3 {[%emt 0:00:05]} Bg7
{[%emt 0:00:03]} 5. Nc3 {[%emt 0:00:05]} e6 {[%emt 0:00:21]} 6. Qd2 {[%emt 0:
00:12]} b5 {[%emt 0:00:27]} 7. e5 {[%emt 0:00:20]} a5 {[%emt 0:00:19]} 8. Bxb5
{[%emt 0:02:57]} cxb5 {[%emt 0:00:48]} 9. Nxb5 {[%emt 0:00:05]} Ne7 {[%emt 0:
01:08]} 10. Nd6+ {[%emt 0:00:15]} Kf8 {[%emt 0:00:01]} 11. Bg5 {[%emt 0:00:26]}
Qc7 {[%emt 0:02:21]} 12. Qf4 {[%emt 0:04:03]} Nf5 {[%emt 0:00:13]} 13. g4 {
[%emt 0:03:03]} Nxd6 {[%emt 0:02:11]} 14. exd6 {[%emt 0:00:11]} Qd7 {[%emt 0:
00:01]} 15. Nh3 {[%emt 0:01:26]} h6 {[%emt 0:00:39]} 16. Be7+ {[%emt 0:00:08]}
Kg8 {[%emt 0:00:10]} 17. c4 {[%emt 0:00:54]} Nc6 {[%emt 0:00:27]} 18. cxd5 {
[%emt 0:00:06]} Nxe7 {[%emt 0:00:09]} 19. dxe7 {[%emt 0:00:08]} Qxe7 {[%emt 0:
00:01]} 20. d6 {[%emt 0:00:31]} Qf6 {[%emt 0:00:47]} 21. Rc1 {[%emt 0:00:04]}
Qxf4 {[%emt 0:00:18]} 22. Nxf4 {[%emt 0:00:03]} Bxd4 {[%emt 0:00:11]} 23. Rc6 {
[%emt 0:03:21]} Kg7 {[%emt 0:00:15]} 24. Kd2 {[%emt 0:00:11]} Rd8 {[%emt 0:00:
03]} 25. Rhc1 {[%emt 0:00:10]} Bxb2 {[%emt 0:00:09]} 0-1

[Event "European Rapid Championship 2021"]
[Site "Katowice"]
[Date "2021.12.18"]
[Round "5.10"]
[White "Gumularz, Szymon"]
[Black "Koziorowicz, Michal"]
[Result "1/2-1/2"]
[ECO "B52"]
[WhiteElo "2452"]
[BlackElo "2041"]
[Annotator "ChessBase"]
[PlyCount "64"]
[EventDate "2021.12.18"]
[EventType "swiss"]
[EventCountry "POL"]
[SourceTitle "playchess.com"]
[Source "ChessBase"]
[SourceQuality "1"]
[TimeControl "900+10"]

1. e4 {[%emt 0:00:04]} c5 {[%emt 0:00:01]} 2. Nf3 {[%emt 0:00:02]} d6 {[%emt 0:
00:01]} 3. Bb5+ {[%emt 0:00:02]} Bd7 {[%emt 0:00:02]} 4. Bxd7+ {[%emt 0:00:05]}
Qxd7 {[%emt 0:00:02]} 5. c4 {[%emt 0:00:04]} e5 {[%emt 0:00:01]} 6. Nc3 {
[%emt 0:00:07]} g6 {[%emt 0:00:04]} 7. a3 {[%emt 0:00:13]} Bg7 {[%emt 0:00:07]}
8. b4 {[%emt 0:00:02]} Nc6 {[%emt 0:00:11]} 9. Rb1 {[%emt 0:00:06]} Nge7 {
[%emt 0:00:10]} 10. d3 {[%emt 0:00:05]} O-O {[%emt 0:00:02]} 11. O-O {[%emt 0:
00:10]} b6 {[%emt 0:00:05]} 12. Nd5 {[%emt 0:00:12]} Nxd5 {[%emt 0:00:13]} 13.
cxd5 {[%emt 0:00:01]} Nd4 {[%emt 0:00:02]} 14. Nxd4 {[%emt 0:01:04]} exd4 {
[%emt 0:00:53]} 15. bxc5 {[%emt 0:00:22]} bxc5 {[%emt 0:00:02]} 16. Bd2 {
[%emt 0:00:51]} f5 {[%emt 0:00:33]} 17. f3 {[%emt 0:02:55]} fxe4 {[%emt 0:04:
47]} 18. fxe4 {[%emt 0:00:02]} Rxf1+ {[%emt 0:00:01]} 19. Kxf1 {[%emt 0:00:03]}
Re8 {[%emt 0:00:46]} 20. Kg1 {[%emt 0:00:17]} c4 {[%emt 0:00:23]} 21. dxc4 {
[%emt 0:00:04]} Rxe4 {[%emt 0:00:02]} 22. Qf3 {[%emt 0:00:43]} Re8 {[%emt 0:00:
16]} 23. Qd3 {[%emt 0:00:17]} Rc8 {[%emt 0:01:24]} 24. Bf4 {[%emt 0:01:10]} Be5
{[%emt 0:01:25]} 25. Bxe5 {[%emt 0:04:46]} dxe5 {[%emt 0:00:02]} 26. Rf1 {
[%emt 0:00:04]} Qe7 {[%emt 0:00:38]} 27. h3 {[%emt 0:00:16]} a5 {[%emt 0:00:20]
} 28. a4 {[%emt 0:00:36]} Qc5 {[%emt 0:01:02]} 29. Qe4 {[%emt 0:01:09]} Re8 {
[%emt 0:00:53]} 30. Qf3 {[%emt 0:02:39]} Rf8 {[%emt 0:00:20]} 31. Qxf8+ {
[%emt 0:00:04]} Qxf8 {[%emt 0:00:02]} 32. Rxf8+ {[%emt 0:00:01]} Kxf8 {[%emt 0:
00:00]} 1/2-1/2

[Event "European Rapid Championship 2021"]
[Site "Katowice"]
[Date "2021.12.18"]
[Round "5.10"]
[White "Redzisz, Michal"]
[Black "Szwed, Jacek"]
[Result "1/2-1/2"]
[ECO "B27"]
[WhiteElo "2257"]
[BlackElo "2372"]
[Annotator "NA"]
[PlyCount "77"]
[EventDate "2021.12.18"]
[EventType "swiss"]
[EventCountry "POL"]
[SourceTitle "playchess.com"]
[Source "ChessBase"]
[SourceQuality "1"]
[TimeControl "900+10"]

1. Nf3 c5 {[%emt 0:01:20]} 2. e4 {[%emt 0:00:05]} b6 {[%emt 0:00:30]} 3. g3 {
[%emt 0:00:06]} Bb7 {[%emt 0:00:02]} 4. d3 {[%emt 0:00:01]} g6 {[%emt 0:00:07]}
5. Bg2 {[%emt 0:00:01]} Bg7 {[%emt 0:00:01]} 6. O-O {[%emt 0:00:02]} d6 {
[%emt 0:00:08]} 7. c3 {[%emt 0:00:09]} Nf6 {[%emt 0:00:15]} 8. Nbd2 {[%emt 0:
00:01]} O-O {[%emt 0:00:13]} 9. Re1 {[%emt 0:00:01]} Nc6 {[%emt 0:01:17]} 10.
a4 {[%emt 0:00:06]} Nd7 {[%emt 0:02:02]} 11. h4 {[%emt 0:00:05]} Nde5 {[%emt 0:
01:50]} 12. Nxe5 {[%emt 0:00:09]} dxe5 {[%emt 0:02:09]} 13. Nc4 {[%emt 0:00:09]
} h5 {[%emt 0:01:38]} 14. Be3 {[%emt 0:00:47]} Ba6 {[%emt 0:01:06]} 15. Qc2 {
[%emt 0:00:39]} Qd7 {[%emt 0:01:42]} 16. Rad1 {[%emt 0:00:26]} Qe6 {[%emt 0:00:
20]} 17. b3 {[%emt 0:00:42]} Kh7 {[%emt 0:00:47]} 18. Kh2 {[%emt 0:00:02]} Bh6
{[%emt 0:00:10]} 19. Bh3 {[%emt 0:00:31]} Qf6 {[%emt 0:00:01]} 20. Qd2 {
[%emt 0:00:44]} Bxe3 {[%emt 0:00:01]} 21. fxe3 {[%emt 0:00:01]} Bxc4 22. bxc4 {
[%emt 0:00:18]} Rad8 {[%emt 0:00:36]} 23. Qe2 {[%emt 0:00:15]} e6 {[%emt 0:00:
31]} 24. Rf1 Qe7 25. Rf3 {[%emt 0:01:01]} f5 {[%emt 0:00:20]} 26. exf5 {
[%emt 0:01:25]} exf5 {[%emt 0:00:06]} 27. e4 {[%emt 0:00:05]} f4 {[%emt 0:00:
15]} 28. Rdf1 {[%emt 0:00:10]} Rd6 {[%emt 0:01:27]} 29. Qf2 {[%emt 0:02:32]}
fxg3+ {[%emt 0:00:31]} 30. Kxg3 {[%emt 0:00:05]} Rxf3+ {[%emt 0:00:22]} 31.
Qxf3 {[%emt 0:00:02]} Kg7 {[%emt 0:00:02]} 32. Qe3 {[%emt 0:00:57]} Rf6 {
[%emt 0:00:05]} 33. Rxf6 {[%emt 0:00:36]} Qxf6 {[%emt 0:00:04]} 34. Bd7 {
[%emt 0:00:32]} Nd8 {[%emt 0:00:24]} 35. a5 {[%emt 0:01:08]} bxa5 {[%emt 0:00:
21]} 36. Qxc5 {[%emt 0:00:16]} Qf4+ {[%emt 0:00:01]} 37. Kh3 {[%emt 0:00:03]}
Qf3+ {[%emt 0:00:02]} 38. Kh2 {[%emt 0:00:06]} Qe2+ {[%emt 0:00:08]} 39. Kg1 {
[%emt 0:00:17]} 1/2-1/2

[Event "European Rapid Championship 2021"]
[Site "Katowice"]
[Date "2021.12.18"]
[Round "5.11"]
[White "Kuegel, Tobias"]
[Black "Luberanski, Jakub"]
[Result "0-1"]
[ECO "B10"]
[WhiteElo "2242"]
[BlackElo "2199"]
[Annotator "NA"]
[PlyCount "172"]
[EventDate "2021.12.18"]
[EventType "swiss"]
[EventCountry "POL"]
[SourceTitle "playchess.com"]
[Source "ChessBase"]
[SourceQuality "1"]
[TimeControl "900+10"]

1. e4 {[%emt 0:00:10]} c6 {[%emt 0:00:02]} 2. Nc3 {[%emt 0:00:08]} d5 {[%emt 0:
00:02]} 3. Nf3 {[%emt 0:00:02]} dxe4 {[%emt 0:00:02]} 4. Nxe4 {[%emt 0:00:02]}
Nf6 {[%emt 0:00:01]} 5. Qe2 {[%emt 0:00:02]} Nxe4 {[%emt 0:00:04]} 6. Qxe4 {
[%emt 0:00:02]} Be6 {[%emt 0:00:03]} 7. b3 {[%emt 0:06:32]} Nd7 {[%emt 0:01:08]
} 8. Bb2 {[%emt 0:02:35]} Nf6 {[%emt 0:00:03]} 9. Qe3 {[%emt 0:00:06]} Bf5 {
[%emt 0:03:14]} 10. Nh4 {[%emt 0:02:50]} Bd7 {[%emt 0:02:22]} 11. Bc4 {[%emt 0:
03:34]} e6 {[%emt 0:00:07]} 12. Nf5 {[%emt 0:00:22]} Qa5 {[%emt 0:01:36]} 13.
Ng3 {[%emt 0:00:36]} O-O-O {[%emt 0:01:41]} 14. Qc3 {[%emt 0:00:16]} Bb4 {
[%emt 0:00:13]} 15. Qe3 {[%emt 0:00:06]} Nd5 {[%emt 0:00:20]} 16. Bxd5 {
[%emt 0:00:01]} exd5 {[%emt 0:00:08]} 17. a3 {[%emt 0:00:21]} Rhe8 {[%emt 0:00:
20]} 18. axb4 {[%emt 0:00:02]} Rxe3+ {[%emt 0:00:01]} 19. fxe3 {[%emt 0:00:04]}
Qxb4 {[%emt 0:00:21]} 20. Rxa7 {[%emt 0:00:09]} Be6 {[%emt 0:01:49]} 21. Bxg7 {
[%emt 0:00:18]} c5 {[%emt 0:00:39]} 22. Bf6 {[%emt 0:00:11]} Rd6 {[%emt 0:00:
48]} 23. Ra4 {[%emt 0:00:16]} Qb5 {[%emt 0:00:33]} 24. Ra8+ {[%emt 0:00:06]}
Kd7 {[%emt 0:00:02]} 25. Kf2 {[%emt 0:00:06]} Ra6 {[%emt 0:00:14]} 26. Rd8+ {
[%emt 0:00:17]} Kc7 {[%emt 0:00:01]} 27. Rh8 {[%emt 0:00:10]} Ra2 {[%emt 0:00:
24]} 28. Rc1 {[%emt 0:00:02]} Kc6 {[%emt 0:00:27]} 29. Ne2 {[%emt 0:00:16]} Qa5
{[%emt 0:00:25]} 30. Bc3 {[%emt 0:00:15]} Qc7 {[%emt 0:00:13]} 31. Rxh7 {
[%emt 0:00:02]} Bf5 {[%emt 0:00:30]} 32. Rh6+ {[%emt 0:00:05]} Kd7 {[%emt 0:00:
24]} 33. Rf6 {[%emt 0:00:16]} Bg6 {[%emt 0:00:07]} 34. Nf4 {[%emt 0:00:08]} Ke8
{[%emt 0:00:32]} 35. Nxg6 {[%emt 0:00:17]} fxg6 {[%emt 0:00:02]} 36. g3 {
[%emt 0:00:12]} Qh7 {[%emt 0:00:18]} 37. Kg2 {[%emt 0:00:07]} g5 {[%emt 0:00:
00]} 38. Rcf1 {[%emt 0:00:09]} Qe4+ {[%emt 0:00:06]} 39. Kg1 {[%emt 0:00:10]}
Rxc2 {[%emt 0:00:40]} 40. Rf8+ {[%emt 0:00:12]} Kd7 {[%emt 0:00:01]} 41. R1f7+
{[%emt 0:00:12]} Kc6 {[%emt 0:00:06]} 42. Rf6+ {[%emt 0:00:05]} Kb5 {[%emt 0:
00:04]} 43. Ra8 {[%emt 0:00:10]} Rxc3 {[%emt 0:00:22]} 44. dxc3 {[%emt 0:00:01]
} Qxe3+ {[%emt 0:00:01]} 45. Rf2 {[%emt 0:00:13]} Qxc3 {[%emt 0:00:07]} 46. Rg8
{[%emt 0:00:18]} Qe1+ {[%emt 0:00:20]} 47. Kg2 {[%emt 0:00:02]} Qe4+ {[%emt 0:
00:01]} 48. Kg1 {[%emt 0:00:08]} g4 {[%emt 0:00:02]} 49. Rf4 {[%emt 0:00:22]}
Qe1+ {[%emt 0:00:10]} 50. Kg2 {[%emt 0:00:02]} Qe2+ {[%emt 0:00:01]} 51. Kg1 {
[%emt 0:00:03]} d4 {[%emt 0:00:13]} 52. Rd8 {[%emt 0:00:22]} Qe1+ {[%emt 0:00:
37]} 53. Kg2 {[%emt 0:00:11]} Qe2+ {[%emt 0:00:02]} 54. Rf2 {[%emt 0:00:10]}
Qe4+ {[%emt 0:00:02]} 55. Kg1 {[%emt 0:00:02]} Qb1+ {[%emt 0:00:04]} 56. Kg2 {
[%emt 0:00:10]} Qxb3 {[%emt 0:00:02]} 57. h4 {[%emt 0:00:07]} gxh3+ {[%emt 0:
00:03]} 58. Kxh3 {[%emt 0:00:02]} d3 {[%emt 0:00:04]} 59. g4 {[%emt 0:00:04]}
d2+ {[%emt 0:00:02]} 60. Kg2 {[%emt 0:00:05]} d1=Q {[%emt 0:00:05]} 61. Rxd1 {
[%emt 0:00:07]} Qxd1 {[%emt 0:00:02]} 62. Kg3 {[%emt 0:00:05]} Qd6+ {[%emt 0:
00:03]} 63. Kh4 {[%emt 0:00:02]} Qh6+ {[%emt 0:00:01]} 64. Kg3 {[%emt 0:00:01]}
c4 {[%emt 0:00:11]} 65. Rb2+ {[%emt 0:00:04]} Kc6 {[%emt 0:00:09]} 66. Ra2 {
[%emt 0:00:11]} Qe3+ {[%emt 0:00:03]} 67. Kh4 {[%emt 0:00:01]} Qh6+ {[%emt 0:
00:02]} 68. Kg3 {[%emt 0:00:01]} c3 {[%emt 0:00:07]} 69. Ra8 {[%emt 0:00:35]}
Qd6+ {[%emt 0:00:08]} 70. Kh4 {[%emt 0:00:07]} Qh2+ {[%emt 0:00:05]} 71. Kg5 {
[%emt 0:00:02]} Qd2+ {[%emt 0:00:13]} 72. Kf6 {[%emt 0:00:04]} c2 {[%emt 0:00:
03]} 73. Rc8+ {[%emt 0:00:08]} Kb6 {[%emt 0:00:01]} 74. g5 {[%emt 0:00:04]}
c1=Q {[%emt 0:00:03]} 75. Rxc1 {[%emt 0:00:02]} Qxc1 {[%emt 0:00:01]} 76. g6 {
[%emt 0:00:01]} Qf4+ {[%emt 0:00:02]} 77. Kg7 {[%emt 0:00:01]} Kc5 {[%emt 0:00:
04]} 78. Kh8 {[%emt 0:00:07]} Qh6+ {[%emt 0:00:02]} 79. Kg8 {[%emt 0:00:01]}
Qxg6+ {[%emt 0:00:01]} 80. Kh8 {[%emt 0:00:01]} Qf6+ {[%emt 0:00:02]} 81. Kh7 {
[%emt 0:00:01]} Qf1 {[%emt 0:00:02]} 82. Kg6 {[%emt 0:00:02]} Kd6 {[%emt 0:00:
02]} 83. Kh7 {[%emt 0:00:02]} Qg1 {[%emt 0:00:02]} 84. Kh8 {[%emt 0:00:01]} Ke7
{[%emt 0:00:01]} 85. Kh7 {[%emt 0:00:01]} Kf7 {[%emt 0:00:02]} 86. Kh8 {
[%emt 0:00:01]} Qg7# {[%emt 0:00:01]} 0-1

[Event "European Rapid Championship 2021"]
[Site "Katowice"]
[Date "2021.12.18"]
[Round "5.12"]
[White "Andersen, Mads"]
[Black "Mis, Mieszko"]
[Result "1/2-1/2"]
[ECO "D45"]
[WhiteElo "2574"]
[BlackElo "2237"]
[Annotator "ChessBase"]
[PlyCount "82"]
[EventDate "2021.12.18"]
[EventType "swiss"]
[EventCountry "POL"]
[SourceTitle "playchess.com"]
[Source "ChessBase"]
[SourceQuality "1"]
[TimeControl "900+10"]

1. d4 {[%emt 0:00:03]} Nf6 {[%emt 0:00:06]} 2. c4 {[%emt 0:00:02]} c6 {[%emt 0:
00:29]} 3. Nf3 {[%emt 0:00:15]} d5 {[%emt 0:00:05]} 4. e3 {[%emt 0:00:08]} e6 {
[%emt 0:00:47]} 5. Nc3 {[%emt 0:00:08]} a6 {[%emt 0:00:04]} 6. b3 {[%emt 0:00:
10]} c5 {[%emt 0:00:04]} 7. Bb2 {[%emt 0:01:33]} cxd4 {[%emt 0:00:23]} 8. Nxd4
{[%emt 0:00:37]} dxc4 {[%emt 0:00:29]} 9. Bxc4 {[%emt 0:00:10]} b5 {[%emt 0:00:
20]} 10. Be2 {[%emt 0:00:46]} Ra7 {[%emt 0:02:49]} 11. O-O {[%emt 0:06:26]} Rc7
{[%emt 0:02:44]} 12. Rc1 {[%emt 0:01:35]} Be7 {[%emt 0:01:27]} 13. a4 {[%emt 0:
00:53]} b4 {[%emt 0:03:17]} 14. Nb1 {[%emt 0:00:03]} Bc5 {[%emt 0:00:56]} 15.
Nf3 {[%emt 0:03:11]} Nbd7 {[%emt 0:00:54]} 16. Nbd2 {[%emt 0:00:04]} O-O {
[%emt 0:00:20]} 17. Nc4 {[%emt 0:00:02]} Bb7 {[%emt 0:01:09]} 18. Qd3 {[%emt 0:
00:49]} Be4 {[%emt 0:00:27]} 19. Qd2 {[%emt 0:00:01]} Qa8 {[%emt 0:00:07]} 20.
Rfd1 {[%emt 0:00:10]} Bd5 {[%emt 0:00:16]} 21. Qe1 {[%emt 0:00:18]} Rfc8 {
[%emt 0:00:11]} 22. Qf1 {[%emt 0:00:15]} Bf8 {[%emt 0:00:39]} 23. Nd4 {[%emt 0:
00:11]} Qb8 {[%emt 0:00:24]} 24. f3 {[%emt 0:00:13]} Bc5 {[%emt 0:00:18]} 25.
Kh1 {[%emt 0:00:17]} Ba8 {[%emt 0:00:11]} 26. e4 {[%emt 0:00:10]} Bf8 {[%emt 0:
00:14]} 27. Qf2 {[%emt 0:00:20]} Rc5 {[%emt 0:00:01]} 28. Qe3 {[%emt 0:00:20]}
Rh5 {[%emt 0:00:02]} 29. f4 {[%emt 0:00:11]} Rh6 {[%emt 0:00:13]} 30. Bf3 {
[%emt 0:00:11]} Nc5 {[%emt 0:00:00]} 31. e5 {[%emt 0:00:13]} Nd5 {[%emt 0:00:
14]} 32. Qd2 {[%emt 0:00:05]} Be7 {[%emt 0:00:20]} 33. Kg1 {[%emt 0:00:21]} Rd8
{[%emt 0:00:03]} 34. Na5 {[%emt 0:00:15]} Qb6 {[%emt 0:00:13]} 35. Nc4 {
[%emt 0:00:08]} Qa7 {[%emt 0:00:01]} 36. Kh1 {[%emt 0:00:04]} Qb8 {[%emt 0:00:
15]} 37. Na5 {[%emt 0:00:06]} Qb6 {[%emt 0:00:01]} 38. Nc4 {[%emt 0:00:01]} Qb8
{[%emt 0:00:00]} 39. Na5 Qb6 40. Nc4 Qb8 41. Na5 {[%emt 0:00:47]} Qb6 {[%emt 0:
00:03]} 1/2-1/2